fUST/lending_fUST_20250326
["ID","MTS","AMOUNT","RATE_DAILY","PERIOD"]
[356694619,1742981360127,-500.0,0.00016401,2]
[356694620,1742981360148,-500.0,0.00016401,2]
[356694621,1742981360169,-646.91062964,0.00016401,2]
[356694622,1742981360190,-536.71871072,0.00016401,2]
[356694623,1742981360212,-500.0,0.00016401,2]
[356694624,1742981360236,-537.30477149,0.00016401,2]
[356694625,1742981360256,-583.02,0.00016401,2]
[356694626,1742981360278,-500.0,0.00016401,2]
[356694627,1742981360302,-500.0,0.00016401,2]
[356694628,1742981360322,-513.45240173,0.00016401,2]
[356694629,1742981360342,-500.0,0.00016401,2]
[356694630,1742981360363,-500.0,0.00016402,2]
[356694631,1742981360383,-513.04513025,0.00016402,2]
[356694632,1742981360403,-525.42725831,0.00016402,2]
[356694633,1742981360423,-500.0,0.00016402,2]
[356694634,1742981360443,-500.0,0.00016402,2]
[356694635,1742981360464,-164.03671533,0.00016473,2]
[356694636,1742981360485,-500.0,0.00016473,2]
[356694637,1742981360505,-500.0,0.00016473,2]
[356694638,1742981360525,-161.2387531,0.00016473,2]
[356694639,1742981360545,-500.0,0.00016473,2]
[356694640,1742981360565,-500.0,0.00016473,2]
[356694641,1742981360585,-502.34721961,0.00016473,2]
[356694642,1742981360605,-500.0,0.00016473,2]
[356694643,1742981360625,-338.76972979,0.00016473,2]
[356694644,1742981360645,-500.0,0.00016473,2]
[356694645,1742981360665,-500.0,0.00016473,2]
[356694646,1742981360684,-500.0,0.00016473,2]
[356694647,1742981360706,-500.0,0.00016473,2]
[356694648,1742981360731,-500.0,0.00016473,2]
[356694649,1742981360751,-500.0,0.00016473,2]
[356694650,1742981360773,-500.0,0.00016473,2]
[356694651,1742981360795,-500.0,0.00016636,2]
[356694652,1742981360816,-500.0,0.00016665,2]
[356694653,1742981360837,-500.0,0.00016665,2]
[356694654,1742981360858,-500.0,0.00016665,2]
[356694655,1742981360878,-515.27631126,0.00016665,2]
[356694656,1742981360899,-500.0,0.00016665,2]
[356694657,1742981360919,-500.0,0.00016665,2]
[356694658,1742981360939,-500.0,0.00016665,2]
[356694659,1742981360959,-500.0,0.00016665,2]
[356694660,1742981360980,-513.06536233,0.00016665,2]
[356694661,1742981361107,-622.88140461,0.00016665,2]
[356694662,1742981361130,-500.0,0.00016665,2]
[356694663,1742981361150,-792.89,0.00016665,2]
[356694664,1742981361170,-500.0,0.00016675,2]
[356694665,1742981361192,-500.0,0.00016675,2]
[356694666,1742981361214,-500.0,0.00016675,2]
[356694667,1742981361240,-519.3655758,0.00016675,2]
[356694668,1742981361261,-557.3,0.00016675,2]
[356694669,1742981361281,-500.0,0.00016675,2]
[356694670,1742981361302,-500.0,0.00016675,2]
[356694671,1742981361323,-173.89,0.00016675,2]
[356694672,1742981361344,-500.0,0.00016675,2]
[356694673,1742981361366,-2858.53,0.00016675,2]
[356694674,1742981361387,-500.0,0.00016675,2]
[356694675,1742981361407,-1386.4,0.00016675,2]
[356694676,1742981361429,-500.0,0.00016675,2]
[356694677,1742981361450,-466.29102493,0.00016675,2]
[356694678,1742981361471,-500.0,0.00016675,2]
[356694679,1742981361492,-500.0,0.00016675,2]
[356694680,1742981361513,-500.0,0.00016675,2]
[356694681,1742981361534,-500.0,0.00016675,2]
[356694682,1742981361555,-500.0,0.00016676,2]
[356694683,1742981361576,-500.0,0.00016676,2]
[356694684,1742981361598,-500.0,0.00016676,2]
[356694685,1742981361620,-420.0,0.00016703,2]
[356694686,1742981361641,-505.2190647,0.00016864,2]
[356694687,1742981361662,-2297.01897233,0.000169,2]
[356694688,1742981361683,-500.0,0.0001691,2]
[356694689,1742981361705,-500.0,0.00016939,2]
[356694690,1742981361726,-500.0,0.00016939,2]
[356694691,1742981361746,-500.0,0.00016939,2]
[356694692,1742981361768,-500.0,0.00016939,2]
[356694693,1742981361789,-500.0,0.00016939,2]
[356694694,1742981361810,-512.87138771,0.00016939,2]
[356694695,1742981361832,-510.7,0.00016939,2]
[356694696,1742981361853,-792.89,0.00016939,2]
[356694697,1742981361874,-500.0,0.00016949,2]
[356694698,1742981361895,-500.0,0.00016949,2]
[356694699,1742981361915,-500.0,0.00016949,2]
[356694700,1742981361936,-2858.53,0.00016949,2]
[356694701,1742981361959,-355.80514827,0.00016949,2]
[356694702,1742981361979,-156.722228,0.00016949,2]
[356694703,1742981362000,-1386.4,0.00016949,2]
[356694704,1742981362022,-500.0,0.00016949,2]
[356694705,1742981362042,-284.43432012,0.00016949,2]
[356694706,1742981362066,-279.33546,0.00016949,2]
[356694707,1742981362090,-614.2,0.00016949,2]
[356694708,1742981362114,-500.0,0.0001695,2]
[356694709,1742981362139,-1241.1318587,0.00016953,2]
[356694710,1742981362162,-500.0,0.00017184,2]
[356694711,1742981362184,-151.0,0.00017213,2]
[356694712,1742981362205,-500.0,0.00017213,2]
[356694713,1742981362230,-151.0,0.00017213,2]
[356694714,1742981362252,-229.34,0.00017213,2]
[356694715,1742981362275,-500.0,0.00017213,2]
[356694716,1742981362298,-500.0,0.00017213,2]
[356694717,1742981362319,-308.89,0.00017213,2]
[356694718,1742981362340,-792.89,0.00017213,2]
[356694719,1742981362360,-500.0,0.00017223,2]
[356694720,1742981362382,-500.0,0.00017223,2]
[356694721,1742981362402,-2858.53,0.00017223,2]
[356694722,1742981362422,-1386.4,0.00017223,2]
[356694723,1742981362444,-500.0,0.00017223,2]
[356694724,1742981362465,-448.32805524,0.00017359,2]
[356694725,1742981362486,-533.6910071,0.00017397,2]
[356694726,1742981362506,-500.0,0.00017458,2]
[356694727,1742981362527,-500.0,0.00017487,2]
[356694728,1742981362548,-191.08076039,0.00017487,2]
[356694729,1742981362569,-335.83046636,0.00017487,2]
[356694730,1742981362590,-792.89,0.00017487,2]
[356694731,1742981362610,-500.0,0.00017497,2]
[356694732,1742981362630,-643.87,0.00017497,2]
[356694733,1742981362650,-2858.53,0.00017497,2]
[356694734,1742981362670,-1386.4,0.00017497,2]
[356694735,1742981362692,-500.0,0.00017497,2]
[356694736,1742981362713,-427.1017475,0.00017517,2]
[356694737,1742981362733,-500.0,0.00017732,2]
[356694738,1742981362753,-895.00845768,0.0001776,2]
[356694739,1742981362774,-500.0,0.00017761,2]
[356694740,1742981362795,-792.89,0.00017761,2]
[356694741,1742981362816,-151.0,0.00017771,2]
[356694742,1742981362837,-500.0,0.00017771,2]
[356694743,1742981362858,-151.0,0.00017771,2]
[356694744,1742981362878,-173.048035,0.00017771,2]
[356694745,1742981362899,-2858.53,0.00017771,2]
[356694746,1742981362919,-1386.4,0.00017771,2]
[356694747,1742981362939,-500.0,0.00017771,2]
[356694748,1742981362960,-533.69100706,0.00017815,2]
[356694749,1742981362980,-551.0670356,0.00017856,2]
[356694750,1742981363000,-503.16787886,0.00017895,2]
[356694751,1742981363021,-526.26458185,0.00017895,2]
[356694752,1742981363042,-500.0,0.00017895,2]
[356694753,1742981363064,-2297.01897218,0.00017934,2]
[356694754,1742981363085,-500.0,0.00018006,2]
[356694755,1742981363107,-500.0,0.00018035,2]
[356694756,1742981363128,-792.89,0.00018035,2]
[356694757,1742981363150,-500.0,0.00018045,2]
[356694758,1742981363171,-2858.53,0.00018045,2]
[356694759,1742981363191,-1386.4,0.00018045,2]
[356694760,1742981363213,-500.0,0.00018045,2]
[356694761,1742981363239,-298.09836231,0.00018169,2]
[356694762,1742981363259,-533.69100706,0.00018234,2]
[356694763,1742981363282,-587.0,0.00018276,2]
[356694764,1742981363303,-606.27771696,0.0001828,2]
[356694765,1742981363326,-500.0,0.00018309,2]
[356694766,1742981363349,-792.89,0.00018309,2]
[356694767,1742981363370,-500.0,0.00018319,2]
[356694768,1742981363394,-155.777531,0.00018319,2]
[356694769,1742981363417,-2858.53,0.00018319,2]
[356694770,1742981363437,-1386.4,0.00018319,2]
[356694771,1742981363459,-284.98359065,0.00018319,2]
[356694798,1742981432154,-500.0,0.00015266,2]
[356694799,1742981432163,-4723.95038508,0.0001547,2]
[356694839,1742981438075,-108.01317808,0.00015469,2]
[356694994,1742981445984,-34.04374773,0.00015469,2]
[356694995,1742981445997,-114.23541882,0.00015469,2]
[356694996,1742981446006,-1913.58299141,0.0001547,2]
[356695033,1742982297747,1543.83,0.00016438,7]
[356695034,1742982297988,653.64236413,0.00016438,7]
[356695037,1742982442125,-458.20886743,0.00010847,2]
[356695038,1742982452128,-4541.79113257,0.00010847,2]
[356695039,1742982452150,-300.0,0.00010956,2]
[356695040,1742982452173,-146.88380486,0.00010957,2]
[356695041,1742982549151,-2115.02634902,0.00010847,2]
[356695042,1742982549175,-353.11619514,0.00010957,2]
[356695043,1742982549200,-500.0,0.00010957,2]
[356695044,1742982549223,-500.0,0.00010957,2]
[356695045,1742982549247,-500.0,0.00010957,2]
[356695046,1742982549270,-500.0,0.00010957,2]
[356695047,1742982549293,-500.0,0.00010957,2]
[356695048,1742982549315,-500.0,0.00010957,2]
[356695049,1742982549347,-500.0,0.00010957,2]
[356695050,1742982549373,-240.33673281,0.00010957,2]
[356695051,1742982549395,-20000.0,0.00010958,2]
[356695052,1742982549417,-500.0,0.00010958,2]
[356695053,1742982549438,-500.0,0.00010958,2]
[356695054,1742982549461,-500.0,0.00010958,2]
[356695055,1742982549482,-176.664437,0.00010959,2]
[356695056,1742982549503,-153.92,0.00010959,2]
[356695057,1742982549524,-2444.58,0.00010959,2]
[356695058,1742982549545,-2037.15,0.00010959,2]
[356695059,1742982549567,-1697.63,0.00010959,2]
[356695060,1742982549588,-1414.69,0.00010959,2]
[356695061,1742982549609,-1178.91,0.00010959,2]
[356695062,1742982549634,-982.42,0.00010959,2]
[356695063,1742982549656,-818.69,0.00010959,2]
[356695064,1742982549678,-682.24,0.00010959,2]
[356695065,1742982549702,-500.0,0.00010973,2]
[356695066,1742982549725,-500.0,0.00011232,2]
[356695067,1742982549747,-500.0,0.00011506,2]
[356695068,1742982549769,-500.0,0.0001178,2]
[356695069,1742982549791,-500.0,0.00012054,2]
[356695070,1742982549812,-500.0,0.00012328,2]
[356695071,1742982549833,-500.0,0.00012602,2]
[356695072,1742982549855,-500.0,0.00012876,2]
[356695073,1742982549879,-2105.38742995,0.000129,2]
[356695074,1742982549900,-215.96970831,0.0001315,2]
[356695075,1742982549923,-328.68883805,0.00013699,2]
[356695076,1742982549944,-201.1489117,0.00014209,2]
[356695077,1742982549966,-500.0,0.00014403,2]
[356695078,1742982549988,-500.0,0.00014403,2]
[356695079,1742982550010,-500.0,0.00014403,2]
[356695080,1742982550031,-728.85,0.00014403,2]
[356695081,1742982550057,-500.0,0.00014403,2]
[356695082,1742982550079,-500.0,0.00014403,2]
[356695083,1742982550101,-500.0,0.00014403,2]
[356695084,1742982550122,-10000.0,0.00014404,2]
[356695085,1742982550146,-500.0,0.00014677,2]
[356695086,1742982550169,-500.0,0.00014677,2]
[356695087,1742982550192,-500.0,0.00014677,2]
[356695088,1742982550216,-728.85,0.00014677,2]
[356695089,1742982550239,-500.0,0.00014677,2]
[356695090,1742982550261,-500.0,0.00014677,2]
[356695091,1742982550284,-2205.33932935,0.000149,2]
[356695092,1742982550306,-500.0,0.00014951,2]
[356695093,1742982550328,-403.00438856,0.00014951,2]
[356695094,1742982560113,-500.0,0.00010958,2]
[356695095,1742982560134,-568.53,0.00010959,2]
[356695096,1742982560153,-253.93904932,0.00010973,2]
[356695097,1742982560173,-500.0,0.00010973,2]
[356695098,1742982560196,-500.0,0.00014403,2]
[356695099,1742982560218,-500.0,0.00014677,2]
[356695100,1742982560239,-96.99561144,0.00014951,2]
[356695101,1742982560260,-202.19919093,0.00014951,2]
[356695102,1742982560281,-728.85,0.00014951,2]
[356695103,1742982560301,-326.10329543,0.00014951,2]
[356695104,1742982560321,-500.0,0.00014951,2]
[356695105,1742982560463,-500.0,0.00015225,2]
[356695106,1742982560484,-500.0,0.00015225,2]
[356695107,1742982560504,-728.85,0.00015225,2]
[356695108,1742982560524,-160.0,0.00015242,2]
[356695109,1742982560545,-500.0,0.00015264,2]
[356695110,1742982560565,-501.19245089,0.00015264,2]
[356695111,1742982560585,-500.0,0.00015265,2]
[356695112,1742982560605,-500.0,0.00015265,2]
[356695113,1742982560628,-500.0,0.00015265,2]
[356695114,1742982560649,-500.0,0.00015265,2]
[356695115,1742982560670,-500.0,0.00015265,2]
[356695116,1742982560691,-2990.64,0.00015265,2]
[356695117,1742982560715,-500.0,0.00015265,2]
[356695118,1742982560735,-371.57732369,0.00015265,2]
[356695119,1742982560755,-500.0,0.00015265,2]
[356695120,1742982560776,-500.0,0.00015265,2]
[356695121,1742982560797,-2830.57,0.00015265,2]
[356695122,1742982560819,-500.0,0.00015265,2]
[356695123,1742982560840,-500.0,0.00015265,2]
[356695124,1742982560861,-500.0,0.00015265,2]
[356695125,1742982560882,-66.13100098,0.00015265,2]
[356695126,1742982565141,-500.0,0.00010958,2]
[356695127,1742982565163,-433.86899902,0.00015265,2]
[356695128,1742982565185,-500.0,0.00015265,2]
[356695129,1742982565207,-500.0,0.00015265,2]
[356695130,1742982565227,-511.83050161,0.00015266,2]
[356695131,1742982565248,-500.0,0.00015266,2]
[356695132,1742982565270,-500.0,0.00015266,2]
[356695133,1742982565292,-500.0,0.00015266,2]
[356695134,1742982565313,-511.87091639,0.00015266,2]
[356695135,1742982565334,-500.0,0.00015266,2]
[356695136,1742982565355,-500.0,0.00015266,2]
[356695137,1742982565376,-500.0,0.00015266,2]
[356695138,1742982565397,-500.0,0.00015266,2]
[356695139,1742982565419,-500.0,0.00015266,2]
[356695140,1742982565440,-500.0,0.00015266,2]
[356695141,1742982565462,-500.0,0.00015266,2]
[356695142,1742982565484,-310.43056498,0.00015266,2]
[356695143,1742982565507,-216.23956406,0.00015266,2]
[356695144,1742982565528,-250.0,0.00015343,2]
[356695145,1742982565550,-500.0,0.00015359,2]
[356695146,1742982565571,-500.0,0.00015379,2]
[356695147,1742982565592,-500.0,0.00015379,2]
[356695148,1742982565613,-645.15845823,0.00015379,2]
[356695149,1742982565636,-500.0,0.00015379,2]
[356695150,1742982565657,-213.47640284,0.00015439,2]
[356695151,1742982565679,-273.84367577,0.0001546,2]
[356695152,1742982565701,-302.0,0.0001546,2]
[356695153,1742982565724,-600.0,0.0001546,2]
[356695154,1742982565745,-23427.03171151,0.0001547,2]
[356695155,1742982565767,-500.0,0.00015473,2]
[356695156,1742982565789,-500.0,0.00015473,2]
[356695157,1742982565810,-500.0,0.00015473,2]
[356695158,1742982565831,-500.0,0.00015473,2]
[356695159,1742982565851,-500.0,0.00015473,2]
[356695160,1742982565871,-500.0,0.00015473,2]
[356695161,1742982565891,-181.00049609,0.00015473,2]
[356695162,1742982565912,-200.48942187,0.00015473,2]
[356695163,1742982565932,-502.78139883,0.00015473,2]
[356695164,1742982565953,-500.0,0.00015473,2]
[356695165,1742982565974,-500.0,0.00015473,2]
[356695166,1742982565994,-500.0,0.00015473,2]
[356695167,1742982566015,-151.0,0.00015473,2]
[356695168,1742982566036,-500.0,0.00015499,2]
[356695169,1742982566057,-500.0,0.00015499,2]
[356695170,1742982566078,-728.85,0.00015499,2]
[356695171,1742982566099,-622.2,0.00015515,2]
[356695172,1742982566120,-500.0,0.00015539,2]
[356695173,1742982566141,-500.0,0.00015539,2]
[356695174,1742982566161,-528.15,0.00015539,2]
[356695175,1742982566183,-500.0,0.00015539,2]
[356695176,1742982566204,-2990.64,0.00015539,2]
[356695177,1742982566227,-500.0,0.00015539,2]
[356695178,1742982566247,-500.0,0.00015539,2]
[356695179,1742982566269,-500.0,0.00015539,2]
[356695180,1742982566289,-2830.57,0.00015539,2]
[356695181,1742982566313,-500.0,0.00015539,2]
[356695182,1742982566336,-500.0,0.00015539,2]
[356695183,1742982566358,-500.0,0.00015539,2]
[356695184,1742982566380,-500.0,0.00015539,2]
[356695185,1742982566401,-500.0,0.0001554,2]
[356695186,1742982566422,-218.72289873,0.0001554,2]
[356695187,1742982566443,-500.0,0.0001554,2]
[356695188,1742982566464,-500.0,0.0001554,2]
[356695189,1742982566484,-500.0,0.0001554,2]
[356695190,1742982566504,-612.28680365,0.0001554,2]
[356695191,1742982566525,-500.0,0.0001554,2]
[356695192,1742982566546,-500.0,0.0001554,2]
[356695193,1742982566566,-511.41027813,0.0001554,2]
[356695194,1742982566586,-528.4356976,0.0001554,2]
[356695195,1742982566606,-645.2214,0.0001557,2]
[356695196,1742982566629,-669.0945918,0.00015625,2]
[356695197,1742982566651,-693.8510917,0.0001568,2]
[356695198,1742982566672,-719.52358209,0.00015735,2]
[356695199,1742982566694,-500.0,0.00015773,2]
[356695200,1742982566717,-190.97,0.00015773,2]
[356695201,1742982566738,-728.85,0.00015773,2]
[356695202,1742982566759,-151.0,0.00015773,2]
[356695203,1742982566781,-746.14595463,0.0001579,2]
[356695204,1742982566804,-151.0,0.00015807,2]
[356695205,1742982566827,-151.0,0.00015807,2]
[356695206,1742982566849,-500.0,0.00015807,2]
[356695207,1742982566871,-500.0,0.00015813,2]
[356695208,1742982566894,-151.0,0.00015813,2]
[356695209,1742982566916,-500.0,0.00015813,2]
[356695210,1742982566939,-500.0,0.00015813,2]
[356695211,1742982566963,-2990.64,0.00015813,2]
[356695212,1742982566987,-500.0,0.00015813,2]
[356695213,1742982567011,-500.0,0.00015813,2]
[356695214,1742982567035,-500.0,0.00015813,2]
[356695215,1742982567058,-2830.57,0.00015813,2]
[356695216,1742982567191,-151.0,0.00015813,2]
[356695217,1742982567216,-500.0,0.00015813,2]
[356695218,1742982567239,-386.44,0.00015813,2]
[356695219,1742982567263,-500.0,0.00015813,2]
[356695220,1742982567287,-500.0,0.00015813,2]
[356695221,1742982567310,-500.0,0.00015814,2]
[356695222,1742982567333,-394.4,0.00015814,2]
[356695223,1742982567356,-500.0,0.00015814,2]
[356695224,1742982567379,-500.0,0.00015814,2]
[356695225,1742982567401,-773.75335495,0.00015845,2]
[356695226,1742982567422,-802.38222908,0.000159,2]
[356695227,1742982567445,-2105.38742993,0.00015923,2]
[356695228,1742982567467,-832.07037156,0.00015955,2]
[356695229,1742982567490,-2205.33932913,0.00016003,2]
[356695230,1742982567511,-151.0,0.00016004,2]
[356695231,1742982567533,-862.8569753,0.0001601,2]
[356695232,1742982567555,-500.0,0.00016047,2]
[356695233,1742982567577,-728.85,0.00016047,2]
[356695234,1742982567599,-894.78268339,0.00016065,2]
[356695235,1742982567621,-500.0,0.00016074,2]
[356695236,1742982567646,-500.0,0.00016087,2]
[356695237,1742982567669,-398.18471675,0.00016087,2]
[356695238,1742982567690,-2990.64,0.00016087,2]
[356695239,1742982567718,-500.0,0.00016087,2]
[356695240,1742982567740,-500.0,0.00016087,2]
[356695241,1742982567762,-500.0,0.00016087,2]
[356695242,1742982567783,-2830.57,0.00016087,2]
[356695243,1742982567807,-500.0,0.00016087,2]
[356695244,1742982567828,-500.0,0.00016087,2]
[356695245,1742982567850,-500.0,0.00016087,2]
[356695246,1742982567871,-151.0,0.00016087,2]
[356695247,1742982567893,-500.0,0.00016088,2]
[356695248,1742982567914,-215.35997739,0.00016088,2]
[356695249,1742982567935,-500.0,0.00016088,2]
[356695250,1742982567956,-317.86037617,0.00016274,2]
[356695251,1742982567979,-151.0,0.00016291,2]
[356695252,1742982568001,-151.0,0.00016291,2]
[356695253,1742982568023,-159.425195,0.00016291,2]
[356695254,1742982568045,-151.0,0.00016291,2]
[356695255,1742982568068,-151.0,0.00016291,2]
[356695256,1742982568094,-500.0,0.00016321,2]
[356695257,1742982568118,-728.85,0.00016321,2]
[356695258,1742982568141,-500.0,0.00016361,2]
[356695259,1742982568164,-2990.64,0.00016361,2]
[356695260,1742982568187,-500.0,0.00016361,2]
[356695261,1742982568210,-594.16,0.00016361,2]
[356695262,1742982568233,-352.20926686,0.00016361,2]
[356695263,1742982568255,-2830.57,0.00016361,2]
[356695264,1742982568280,-500.0,0.00016361,2]
[356695265,1742982568303,-500.0,0.00016361,2]
[356695266,1742982568326,-500.0,0.00016361,2]
[356695267,1742982568349,-500.0,0.00016362,2]
[356695268,1742982568372,-500.0,0.00016362,2]
[356695269,1742982568394,-500.0,0.000164,2]
[356695270,1742982568416,-702.94635868,0.00016437,2]
[356695271,1742982568438,-1493.93,0.00016438,7]
[356695272,1742982568461,-1493.93,0.00016438,7]
[356695273,1742982568484,-1493.93,0.00016438,7]
[356695274,1742982568511,-1493.93,0.00016438,7]
[356695275,1742982568541,-1493.93,0.00016438,7]
[356695276,1742982568571,-1493.93,0.00016438,7]
[356695277,1742982568597,-1493.93,0.00016438,7]
[356695278,1742982568624,-1493.93,0.00016438,7]
[356695279,1742982568652,-1493.93,0.00016438,7]
[356695280,1742982568679,-1493.93,0.00016438,7]
[356695281,1742982568706,-1493.93,0.00016438,7]
[356695282,1742982568731,-1493.93,0.00016438,7]
[356695283,1742982568759,-1493.93,0.00016438,7]
[356695284,1742982568786,-1493.93,0.00016438,7]
[356695285,1742982568813,-1493.93,0.00016438,7]
[356695286,1742982568838,-1493.93,0.00016438,7]
[356695287,1742982568863,-1493.93,0.00016438,7]
[356695288,1742982568891,-1493.93,0.00016438,7]
[356695289,1742982568917,-1493.93,0.00016438,7]
[356695290,1742982568942,-1493.93,0.00016438,7]
[356695291,1742982568965,-1493.93,0.00016438,7]
[356695292,1742982568990,-151.0,0.00016438,2]
[356695293,1742982569014,-217.305981,0.00016438,2]
[356695294,1742982569041,-151.0,0.00016438,2]
[356695295,1742982569067,-151.0,0.00016438,2]
[356695296,1742982569095,-151.0,0.00016438,2]
[356695297,1742982569121,-1000.0,0.00016452,2]
[356695298,1742982569149,-1000.0,0.00016452,2]
[356695299,1742982569176,-500.0,0.0001649,2]
[356695300,1742982569200,-152.0,0.00016565,2]
[356695301,1742982569223,-151.0,0.00016565,2]
[356695302,1742982569247,-151.0,0.00016565,2]
[356695303,1742982569277,-500.0,0.00016595,2]
[356695304,1742982569305,-728.85,0.00016595,2]
[356695305,1742982569329,-500.75358151,0.000166,2]
[356695306,1742982569353,-213.47640282,0.00016604,2]
[356695307,1742982569379,-500.0,0.00016635,2]
[356695308,1742982569405,-2990.64,0.00016635,2]
[356695309,1742982569429,-500.0,0.00016635,2]
[356695310,1742982569452,-2830.57,0.00016635,2]
[356695311,1742982569477,-500.0,0.00016635,2]
[356695312,1742982569501,-429.54,0.00016635,2]
[356695313,1742982569525,-500.0,0.00016635,2]
[356695314,1742982569549,-500.0,0.00016636,2]
[356695315,1742982569573,-500.0,0.00016636,2]
[356695316,1742982569597,-1493.93,0.00016712,7]
[356695317,1742982569622,-151.0,0.00016839,2]
[356695318,1742982569649,-8801.32958743,0.00016869,2]
[356695319,1742982569673,-175.18819438,0.00016869,2]
[356695320,1742982569697,-728.85,0.00016869,2]
[356695321,1742982569726,-31558.58066651,0.00016876,2]
[356695322,1742982569749,-151.0,0.00016876,2]
[356695323,1742982569773,-1185.6098495,0.00016876,2]
[356695324,1742982569797,-189.763771,0.000169,2]
[356695325,1742982569821,-500.0,0.00016909,2]
[356695326,1742982569846,-2990.64,0.00016909,2]
[356695327,1742982569870,-2830.57,0.00016909,2]
[356695328,1742982569896,-500.0,0.00016909,2]
[356695329,1742982569921,-151.0,0.00016909,2]
[356695330,1742982569946,-251.84605271,0.00016909,2]
[356695331,1742982569972,-500.0,0.0001691,2]
[356695332,1742982569998,-500.0,0.0001691,2]
[356695333,1742982570028,-1493.93,0.00016986,7]
[356695334,1742982570199,-834.83451184,0.00017,7]
[356695335,1742982570230,-2205.33932913,0.00017107,2]
[356695336,1742982570252,-151.0,0.00017107,2]
[356695337,1742982570273,-151.0,0.00017107,2]
[356695338,1742982570296,-728.85,0.00017143,2]
[356695339,1742982570318,-500.0,0.00017183,2]
[356695340,1742982570341,-2990.64,0.00017183,2]
[356695341,1742982570362,-2830.57,0.00017183,2]
[356695342,1742982570386,-500.0,0.00017183,2]
[356695343,1742982570408,-151.0,0.00017183,2]
[356695344,1742982570431,-500.0,0.00017184,2]
[356695345,1742982570453,-218.44683184,0.00017184,2]
[356695346,1742982570477,-1494.11763587,0.0001726,7]
[356695347,1742982570499,-151.0,0.00017387,2]
[356695348,1742982570520,-151.0,0.00017416,2]
[356695349,1742982570541,-728.85,0.00017416,2]
[356695350,1742982570563,-366.74167768,0.00017457,2]
[356695351,1742982570604,-473.78,0.00010959,2]
[356695352,1742982570626,-151.0,0.00015773,2]
[356695353,1742982570650,-133.25832232,0.00017457,2]
[356695354,1742982570671,-2990.64,0.00017457,2]
[356695355,1742982570691,-2830.57,0.00017457,2]
[356695356,1742982570716,-500.0,0.00017457,2]
[356695357,1742982570736,-500.0,0.00017458,2]
[356695358,1742982570758,-728.85,0.0001769,2]
[356695359,1742982570779,-500.0,0.00017731,2]
[356695360,1742982570801,-2990.64,0.00017731,2]
[356695361,1742982570822,-2830.57,0.00017731,2]
[356695362,1742982570844,-500.0,0.00017731,2]
[356695363,1742982570865,-151.0,0.00017731,2]
[356695364,1742982570886,-611.70829666,0.00017732,2]
[356695365,1742982570907,-213.47640282,0.00017768,2]
[356695366,1742982570928,-242.333,0.00017894,2]
[356695367,1742982570950,-150.0,0.00017944,2]
[356695368,1742982570971,-728.85,0.00017964,2]
[356695369,1742982570997,151.0,0.00016087,2]
[356695370,1742982571022,151.0,0.00016438,2]
[356695371,1742982571046,151.0,0.00016876,2]
[356695372,1742982571071,151.0,0.00017183,2]
[356695384,1742982578606,2174.06857077,0.00017484,2]
[356695399,1742982632271,-312.27944453,0.00010958,2]
[356695400,1742982632379,-187.72055547,0.00010958,2]